fUSD/lending_fUSD_20251117
["ID","MTS","AMOUNT","RATE_DAILY","PERIOD"]
[394221927,1763392239492,-150.0,0.00036966,7]
[394221928,1763392239511,-501.44245862,0.00036973,5]
[394221929,1763392239523,-500.0,0.00036973,2]
[394221930,1763392239535,-500.0,0.00036973,5]
[394221931,1763392239546,-616.41000117,0.00036973,5]
[394221932,1763392239558,-228.14650797,0.00036973,5]
[394221933,1763392239570,-500.64468798,0.00036973,5]
[394221934,1763392239582,-397.31767821,0.00036973,2]
[394221936,1763392239594,-4212.04503596,0.00036973,2]
[394221938,1763392239605,-4644.70488609,0.00036973,2]
[394221940,1763392239617,-172.96452812,0.0003699,15]
[394221942,1763392239628,-500.0,0.00036999,2]
[394221944,1763392239639,-500.0,0.00036999,2]
[394221946,1763392239651,-500.0,0.00036999,2]
[394221948,1763392239662,-199.12959069,0.00036999,15]
[394221951,1763392239674,-500.0,0.00036999,7]
[394221953,1763392239686,-500.70471959,0.00036999,15]
[394221955,1763392239697,-500.0,0.00036999,15]
[394221957,1763392239708,-500.0,0.00036999,15]
[394221959,1763392239719,-202.49325871,0.00036999,2]
[394221961,1763392239731,-500.0,0.00036999,15]
[394221963,1763392239742,-500.0,0.00036999,7]
[394221965,1763392239755,-500.0,0.00036999,15]
[394221967,1763392239767,-500.0,0.00036999,15]
[394221970,1763392239779,-500.0,0.00036999,15]
[394221972,1763392239791,-500.0,0.00036999,7]
[394221974,1763392239803,-500.0,0.00036999,15]
[394221976,1763392239816,-500.0,0.00036999,15]
[394221978,1763392239827,-500.0,0.00036999,15]
[394221980,1763392239838,-384.87026691,0.00036999,7]
[394221983,1763392239849,-500.0,0.00036999,15]
[394221985,1763392239860,-500.0,0.00036999,15]
[394221987,1763392239871,-623.77151657,0.00036999,15]
[394221989,1763392239881,-500.0,0.00036999,15]
[394221991,1763392239894,-152.65631733,0.00036999,15]
[394221993,1763392239905,-500.0,0.00036999,15]
[394221996,1763392239916,-500.0,0.00036999,15]
[394221998,1763392239930,-500.0,0.00036999,15]
[394222000,1763392239941,-500.0,0.00036999,15]
[394222002,1763392239952,-500.0,0.00036999,15]
[394222005,1763392239963,-500.0,0.00036999,15]
[394222008,1763392239973,-500.0,0.00036999,15]
[394222011,1763392239984,-500.0,0.00036999,15]
[394222014,1763392239996,-500.0,0.00036999,15]
[394222016,1763392240009,-500.0,0.00036999,15]
[394222018,1763392240019,-500.0,0.00036999,15]
[394222020,1763392240030,-500.0,0.00036999,15]
[394222022,1763392240041,-500.0,0.00036999,15]
[394222024,1763392240051,-500.0,0.00036999,15]
[394222026,1763392240062,-500.0,0.00036999,15]
[394222029,1763392240073,-500.0,0.00036999,15]
[394222031,1763392240087,-500.0,0.00036999,15]
[394222033,1763392240098,-500.0,0.00036999,15]
[394222035,1763392240109,-500.0,0.00036999,15]
[394222037,1763392240120,-500.0,0.00036999,15]
[394222041,1763392240131,-500.0,0.00036999,15]
[394222043,1763392240142,-500.0,0.00036999,15]
[394222045,1763392240153,-500.0,0.00036999,15]
[394222047,1763392240163,-500.0,0.00036999,15]
[394222049,1763392240174,-500.0,0.00036999,15]
[394222051,1763392240185,-500.0,0.00036999,15]
[394222054,1763392240196,-500.0,0.00036999,15]
[394222056,1763392240207,-500.0,0.00036999,15]
[394222058,1763392240218,-500.0,0.00036999,15]
[394222060,1763392240229,-557.6728991,0.00036999,15]
[394222062,1763392240240,-239395.09462354,0.00037,7]
[394222064,1763392240254,-150.0,0.00037021,7]
[394222067,1763392240264,-150.0,0.00037021,7]
[394222069,1763392240275,-26629.6902243,0.00037072,4]
[394222071,1763392240286,-500.0,0.00037073,5]
[394222073,1763392240296,-646.57973683,0.00037073,5]
[394222075,1763392240307,-500.0,0.00037073,5]
[394222078,1763392240318,-150.0,0.00037073,2]
[394222080,1763392240330,-150.0,0.00037073,2]
[394222082,1763392240341,-167.39298682,0.00037073,2]
[394222084,1763392240352,-26629.6902243,0.0003708,4]
[394222086,1763392240363,-1000.0,0.00037082,2]
[394222089,1763392240374,-4212.0450359,0.00037091,2]
[394222091,1763392240385,-500.0,0.00037092,2]
[394222093,1763392240395,-4171.5056,0.00037092,30]
[394222095,1763392240404,-150.0,0.00037157,7]
[394222097,1763392240414,-150.0,0.00037157,7]
[394222099,1763392240424,-150.0,0.0003717,2]
[394222144,1763392240821,-133148.451122,0.00037172,4]
[394222147,1763392240840,-38960.7498345,0.00037172,4]
[394222152,1763392240875,-240.13752377,0.00037172,2]
[394222154,1763392240888,-171.89906706,0.00037173,5]
[394222156,1763392240898,-161.49360073,0.00037173,5]
[394222159,1763392240908,-500.0,0.00037173,5]
[394222161,1763392240918,-528.12485151,0.00037173,5]
[394222162,1763392240930,-500.96249559,0.00037173,5]
[394222165,1763392240940,-150.34604515,0.00037173,5]
[394222166,1763392240949,-501.96917068,0.00037173,5]
[394222168,1763392240959,-500.0,0.00037173,5]
[394222170,1763392240968,-500.0,0.00037173,5]
[394222173,1763392240978,-280.90869368,0.00037173,5]
[394222174,1763392240987,-501.83907426,0.00037173,5]
[394222177,1763392241000,-500.0,0.00037173,5]
[394222179,1763392241009,-7439.0,0.00037182,5]
[394222181,1763392241018,-372815.663141,0.00037182,4]
[394222183,1763392241029,-199132.721376,0.00037182,4]
[394222184,1763392241038,-181.6161309,0.000372,120]
[394222187,1763392241047,-181.61613088,0.000372,120]
[394222188,1763392241056,-181.61613088,0.000372,120]
[394222190,1763392241065,-4212.0450359,0.00037209,2]
[394222192,1763392241074,-168.0,0.00037213,2]
[394222194,1763392241083,-4644.704886,0.0003724,2]
[394222197,1763392241093,-500.0,0.00037273,2]
[394222198,1763392241102,-500.0,0.00037273,2]
[394222200,1763392241111,-150.0,0.00037293,7]
[394222202,1763392241121,-26629.6902243,0.00037317,4]
[394222205,1763392241130,-4212.0450359,0.00037327,2]
[394222206,1763392241139,-150.0,0.00037347,7]
[394222209,1763392241149,-150.0,0.00037347,7]
[394222210,1763392241158,-1056.91,0.0003744,2]
[394222212,1763392241167,-4212.0450359,0.00037445,2]
[394222215,1763392241176,-150.0,0.00037474,7]
[394222216,1763392241186,-150.0,0.00037474,7]
[394222218,1763392241195,-150.0,0.00037474,7]
[394222220,1763392241205,-168.0,0.00037475,2]
[394222222,1763392241214,-4644.704886,0.00037507,2]
[394222224,1763392241223,-1000.0,0.00037521,2]
[394222226,1763392241232,-294.42607375,0.00037521,5]
[394222228,1763392241242,-218.69203336,0.00037523,2]
[394222229,1763392241254,-500.0,0.00037547,2]
[394222230,1763392241263,-500.0,0.00037547,2]
[394222231,1763392241272,-4212.0450359,0.00037564,2]
[394222232,1763392241281,-150.0,0.00037565,7]
[394222233,1763392241290,-150.0,0.00037565,7]
[394222234,1763392241299,-168.0,0.00037581,120]
[394222235,1763392241308,-291.284,0.00037594,2]
[394222236,1763392241317,-150.0,0.000376,30]
[394222238,1763392241326,-168.0,0.000376,7]
[394222239,1763392241336,-500.0,0.00037621,5]
[394222241,1763392241345,-150.0,0.00037633,7]
[394222243,1763392241355,-1132.94502583,0.00037671,30]
[394222245,1763392241365,-4212.0450359,0.00037682,2]
[394222247,1763392241374,-1000.0,0.00037721,5]
[394222249,1763392241384,-501.0314421,0.00037721,5]
[394222251,1763392241394,-500.0,0.00037721,5]
[394222253,1763392241404,-150.0,0.00037728,7]
[394222255,1763392241413,-166.02541,0.0003773,2]
[394222257,1763392241423,-168.0,0.00037737,7]
[394222259,1763392241433,-218.69203336,0.00037748,2]
[394222261,1763392241445,-4644.704886,0.00037773,2]
[394222263,1763392241455,-150.0,0.00037792,7]
[394222265,1763392241466,-4212.0450359,0.000378,2]
[394222267,1763392241476,-26629.6902243,0.00037812,4]
[394222269,1763392241485,-500.0,0.00037821,2]
[394222271,1763392241495,-500.0,0.00037821,2]
[394222273,1763392241508,-1132.94502583,0.00037836,30]
[394222275,1763392241518,-150.0,0.00037837,7]
[394222277,1763392241527,-280.61488507,0.00037867,15]
[394222279,1763392241537,-500.0,0.00037867,120]
[394222281,1763392241547,-4212.0450359,0.00037918,2]
[394222283,1763392241556,-218.69203336,0.00037937,2]
[394222285,1763392241566,-166.02541,0.0003794,2]
[394222287,1763392241576,-1132.94502583,0.00037973,30]
[394222289,1763392241585,-2000.0,0.00038,2]
[394222291,1763392241594,-194.0,0.00038,2]
[394222293,1763392241603,-300.0,0.00038,7]
[394222295,1763392241612,-1203.2381,0.00038036,2]
[394222297,1763392241622,-1000.0,0.00038036,2]
[394222299,1763392241631,-364.41860212,0.00038036,2]
[394222301,1763392241640,-4212.0450359,0.00038036,2]
[394222303,1763392241650,-267.26637483,0.00038036,2]
[394222305,1763392241659,-221.39638378,0.00038036,2]
[394222307,1763392241669,-9108.9470193,0.00038036,2]
[394222309,1763392241678,-4644.704886,0.0003804,2]
[394222311,1763392241688,-172.9645281,0.00038079,15]
[394222313,1763392241697,-500.0,0.00038095,2]
[394222315,1763392241707,-220.20733954,0.00038095,2]
[394222317,1763392241716,-45825.9322138,0.000381,2]
[394222319,1763392241726,-150.0,0.0003811,7]
[394222321,1763392241735,-150.0,0.0003811,7]
[394222323,1763392241744,-150.0,0.0003811,7]
[394222325,1763392241757,-281.81543624,0.0003811,7]
[394222327,1763392241766,-150.0,0.0003811,7]
[394222329,1763392241775,-150.0,0.0003811,7]
[394222331,1763392241785,-212.62069564,0.0003811,7]
[394222333,1763392241794,-150.0,0.0003811,7]
[394222335,1763392241804,-150.0,0.0003811,7]
[394222337,1763392241814,-150.0,0.0003811,7]
[394222339,1763392241823,-150.0,0.0003811,7]
[394222341,1763392241833,-166.02541,0.0003811,2]
[394222343,1763392241842,-969.6335391,0.00038113,2]
[394222345,1763392241851,-500.0,0.00038115,4]
[394222347,1763392241861,-831.9882151,0.00038123,2]
[394222349,1763392241870,-271923.4966244,0.00038123,2]
[394222351,1763392241880,-3574.7067602,0.00038123,2]
[394222353,1763392241890,-168.0,0.00038124,7]
[394222355,1763392241899,-151.0,0.00038126,31]
[394222357,1763392241908,-151.0,0.00038126,31]
[394222359,1763392241922,-151.0,0.00038126,31]
[394222361,1763392241931,-151.0,0.00038126,31]
[394222363,1763392241941,-151.0,0.00038126,31]
[394222365,1763392241951,-151.0,0.00038126,31]
[394222367,1763392241961,-151.823225,0.00038126,31]
[394222369,1763392241971,-151.0,0.00038126,31]
[394222371,1763392241981,-151.0,0.00038126,31]
[394222373,1763392241991,-151.0,0.00038126,31]
[394222375,1763392242006,-151.0,0.00038126,31]
[394222377,1763392242015,-151.0,0.00038126,28]
[394222379,1763392242025,-151.0,0.00038126,28]
[394222381,1763392242035,-151.0,0.00038126,31]
[394222383,1763392242044,-151.0,0.00038126,31]
[394222385,1763392242054,-151.0,0.00038126,31]
[394222387,1763392242064,-151.0,0.00038126,31]
[394222389,1763392242073,-255.367712,0.00038126,31]
[394222391,1763392242082,-151.0,0.00038126,31]
[394222393,1763392242092,-151.0,0.00038126,31]
[394222395,1763392242102,-151.0,0.00038126,31]
[394222397,1763392242111,-151.0,0.00038126,31]
[394222399,1763392242121,-209.227499,0.00038126,31]
[394222401,1763392242130,-151.0,0.00038126,31]
[394222403,1763392242140,-153.782234,0.00038126,31]
[394222405,1763392242149,-151.0,0.00038126,31]
[394222407,1763392242159,-151.0,0.00038126,31]
[394222409,1763392242168,-151.0,0.00038126,31]
[394222411,1763392242178,-151.0,0.00038126,31]
[394222413,1763392242187,-151.0,0.00038126,31]
[394222416,1763392242196,-151.0,0.00038126,31]
[394222417,1763392242205,-151.0,0.00038126,31]
[394222420,1763392242215,-154.39145,0.00038126,31]
[394222422,1763392242225,-151.0,0.00038126,31]
[394222423,1763392242234,-375.219599,0.00038126,31]
[394222425,1763392242243,-151.0,0.00038126,31]
[394222427,1763392242257,-375.219599,0.00038126,31]
[394222429,1763392242266,-375.219599,0.00038126,31]
[394222431,1763392242276,-375.219599,0.00038126,31]
[394222433,1763392242285,-151.0,0.00038126,31]
[394222435,1763392242294,-151.0,0.00038126,31]
[394222437,1763392242303,-151.0,0.00038126,31]
[394222439,1763392242312,-155.896795,0.00038126,30]
[394222441,1763392242322,-151.0,0.00038126,31]
[394222443,1763392242331,-151.0,0.00038126,31]
[394222445,1763392242340,-151.0,0.00038126,31]
[394222447,1763392242349,-151.0,0.00038126,31]
[394222449,1763392242358,-151.0,0.00038126,31]
[394222451,1763392242368,-168.690077,0.00038126,31]
[394222453,1763392242378,-151.0,0.00038126,31]
[394222455,1763392242388,-152.243022,0.00038126,31]
[394222457,1763392242397,-151.0,0.00038126,31]
[394222459,1763392242407,-168.690077,0.00038126,31]
[394222461,1763392242416,-151.0,0.00038126,31]
[394222464,1763392242427,-168.690077,0.00038126,31]
[394222466,1763392242439,-168.690077,0.00038126,31]
[394222468,1763392242451,-151.0,0.00038126,31]
[394222469,1763392242460,-263.849705,0.00038126,31]
[394222472,1763392242470,-151.0,0.00038126,31]
[394222474,1763392242480,-151.0,0.00038126,31]
[394222476,1763392242489,-151.0,0.00038126,31]
[394222478,1763392242502,-151.0,0.00038126,31]
[394222480,1763392242511,-294.085003,0.00038126,31]
[394222482,1763392242521,-294.085003,0.00038126,31]
[394222484,1763392242530,-294.085003,0.00038126,31]
[394222486,1763392242539,-294.085003,0.00038126,31]
[394222488,1763392242548,-158.43958,0.00038126,31]
[394222490,1763392242557,-158.43958,0.00038126,31]
[394222492,1763392242567,-158.43958,0.00038126,31]
[394222494,1763392242577,-158.43958,0.00038126,31]
[394222496,1763392242586,-151.0,0.00038126,31]
[394222498,1763392242598,-246.553778,0.00038126,31]
[394222500,1763392242608,-151.0,0.00038126,31]
[394222502,1763392242618,-246.553778,0.00038126,31]
[394222504,1763392242629,-246.553778,0.00038126,31]
[394222506,1763392242639,-246.553778,0.00038126,31]
[394222508,1763392242649,-156.396335,0.00038126,31]
[394222510,1763392242659,-151.0,0.00038126,31]
[394222512,1763392242668,-156.396335,0.00038126,31]
[394222514,1763392242677,-156.396335,0.00038126,31]
[394222516,1763392242687,-151.0,0.00038126,31]
[394222518,1763392242697,-151.0,0.00038126,31]
[394222520,1763392242706,-456.020185,0.00038126,31]
[394222522,1763392242715,-156.396335,0.00038126,31]
[394222524,1763392242725,-456.020185,0.00038126,31]
[394222526,1763392242734,-456.020185,0.00038126,31]
[394222528,1763392242743,-456.020185,0.00038126,31]
[394222530,1763392242756,-164.271193,0.00038126,31]
[394222532,1763392242766,-151.0,0.00038126,31]
[394222534,1763392242776,-151.0,0.00038126,31]
[394222536,1763392242786,-151.0,0.00038126,31]
[394222539,1763392242795,-151.0,0.00038126,31]
[394222541,1763392242805,-151.0,0.00038126,31]
[394222543,1763392242814,-151.0,0.00038126,31]
[394222545,1763392242824,-151.0,0.00038126,31]
[394222547,1763392242833,-500.0,0.00038133,15]
[394222549,1763392242843,-500.0,0.00038133,15]
[394222551,1763392242852,-500.0,0.00038133,15]
[394222553,1763392242862,-1000.0,0.00038133,15]
[394222554,1763392242873,-500.0,0.00038133,15]
[394222555,1763392242883,-1000.0,0.00038133,15]
[394222556,1763392242893,-500.0,0.00038133,15]
[394222557,1763392242902,-1000.0,0.00038133,15]
[394222558,1763392242913,-500.0,0.00038133,15]
[394222559,1763392242926,-1000.0,0.00038133,15]
[394222560,1763392242936,-500.0,0.00038133,15]
[394222562,1763392242945,-1000.0,0.00038133,15]
[394222564,1763392242954,-500.0,0.00038133,15]
[394222566,1763392242965,-1000.0,0.00038133,15]
[394222568,1763392242975,-500.0,0.00038133,15]
[394222570,1763392242984,-1000.0,0.00038133,15]
[394222572,1763392242995,-500.0,0.00038133,15]
[394222574,1763392243008,-1000.0,0.00038133,15]
[394222576,1763392243018,-500.0,0.00038133,15]
[394222579,1763392243028,-1000.0,0.00038133,15]
[394222581,1763392243039,-1000.0,0.00038133,15]
[394222584,1763392243048,-1000.0,0.00038133,15]
[394222586,1763392243058,-500.0,0.00038133,2]
[394222589,1763392243068,-500.0,0.00038133,15]
[394222591,1763392243078,-5609.7797321,0.00038134,2]
[394222594,1763392243087,-947.18442743,0.00038134,5]
[394222597,1763392243097,-413446.70178903,0.00038136,120]
[394222599,1763392243107,-86570.16101394,0.00038136,120]
[394222607,1763392243176,-1676.76878117,0.00038136,120]
[394222609,1763392243189,-5587.46054435,0.00038136,120]
[394222611,1763392243202,-1972.29999997,0.00038136,120]
[394222613,1763392243215,-517.20873349,0.00038136,120]
[394222616,1763392243227,-20303.52435562,0.00038136,120]
[394222618,1763392243239,-829.03825562,0.00038136,120]
[394222620,1763392243256,-526.52210226,0.00038136,120]
[394222667,1763392243698,-2574101.71958134,0.00038136,120]
[394222672,1763392243728,-5795.45543174,0.00038136,120]
[394222762,1763392244665,-116678.64849508,0.00038136,120]
[394222764,1763392244676,-151.841322,0.00038136,31]
[394222766,1763392244687,-151.0,0.00038136,30]
[394222768,1763392244697,-151.0,0.00038136,31]
[394222770,1763392244707,-151.0,0.00038136,31]
[394222772,1763392244716,-151.0,0.00038136,31]
[394222774,1763392244725,-151.0,0.00038136,31]
[394222776,1763392244735,-258.910321,0.00038136,31]
[394222778,1763392244744,-151.0,0.00038136,31]
[394222780,1763392244758,-151.0,0.00038136,31]
[394222782,1763392244769,-151.0,0.00038136,31]
[394222784,1763392244778,-153.955169,0.00038136,31]
[394222787,1763392244788,-151.0,0.00038136,31]
[394222789,1763392244799,-151.0,0.00038136,31]
[394222790,1763392244808,-151.0,0.00038136,31]
[394222793,1763392244817,-151.0,0.00038136,31]
[394222794,1763392244826,-151.0,0.00038136,31]
[394222796,1763392244836,-153.729362,0.00038136,31]
[394222799,1763392244845,-151.0,0.00038136,31]
[394222801,1763392244855,-151.0,0.00038136,31]
[394222803,1763392244866,-167.405602,0.00038136,31]
[394222805,1763392244878,-151.0,0.00038136,31]
[394222807,1763392244887,-151.0,0.00038136,31]
[394222809,1763392244898,-151.0,0.00038136,31]
[394222811,1763392244910,-151.0,0.00038136,31]
[394222813,1763392244922,-151.0,0.00038136,31]
[394222814,1763392244931,-151.0,0.00038136,31]
[394222816,1763392244943,-151.0,0.00038136,31]
[394222819,1763392244955,-151.0,0.00038136,31]
[394222820,1763392244964,-151.0,0.00038136,31]
[394222822,1763392244973,-151.0,0.00038136,31]
[394222824,1763392244983,-151.0,0.00038136,10]
[394222826,1763392244994,-151.0,0.00038136,31]
[394222828,1763392245011,-151.0,0.00038136,31]
[394222830,1763392245020,-151.0,0.00038136,31]
[394222832,1763392245029,-151.0,0.00038136,31]
[394222834,1763392245039,-151.0,0.00038136,31]
[394222836,1763392245047,-151.0,0.00038136,31]
[394222838,1763392245055,-151.0,0.00038136,31]
[394222840,1763392245063,-151.0,0.00038136,31]
[394222842,1763392245073,-151.0,0.00038136,31]
[394222844,1763392245082,-151.0,0.00038136,31]
[394222846,1763392245090,-151.0,0.00038136,31]
[394222848,1763392245099,-151.0,0.00038136,15]
[394222850,1763392245107,-151.0,0.00038136,31]
[394222852,1763392245116,-151.0,0.00038136,31]
[394222854,1763392245125,-151.0,0.00038136,31]
[394222856,1763392245134,-151.0,0.00038136,31]
[394222858,1763392245143,-151.949131,0.00038136,31]
[394222860,1763392245152,-151.0,0.00038136,31]
[394222862,1763392245161,-151.0,0.00038136,31]
[394222865,1763392245171,-151.0,0.00038136,31]
[394222867,1763392245181,-151.0,0.00038136,31]
[394222869,1763392245190,-151.0,0.00038136,31]
[394222870,1763392245199,-151.0,0.00038136,31]
[394222873,1763392245209,-151.0,0.00038136,31]
[394222875,1763392245218,-151.0,0.00038136,31]
[394222877,1763392245228,-151.0,0.00038136,31]
[394222879,1763392245238,-158.067616,0.00038136,31]
[394222881,1763392245249,-151.0,0.00038136,28]
[394222883,1763392245262,-151.0,0.00038136,28]
[394222884,1763392245281,-151.0,0.00038136,31]
[394222886,1763392245291,-151.0,0.00038136,31]
[394222888,1763392245300,-151.0,0.00038136,31]
[394222890,1763392245311,-151.0,0.00038136,31]
[394222892,1763392245320,-151.0,0.00038136,31]
[394222895,1763392245330,-151.0,0.00038136,31]
[394222896,1763392245339,-151.0,0.00038136,31]
[394222898,1763392245348,-151.0,0.00038136,31]
[394222900,1763392245357,-151.0,0.00038136,31]
[394222903,1763392245367,-151.0,0.00038136,31]
[394222905,1763392245376,-151.0,0.00038136,31]
[394222907,1763392245385,-151.0,0.00038136,31]
[394222909,1763392245394,-151.980256,0.00038136,31]
[394222911,1763392245404,-151.0,0.00038136,31]
[394222913,1763392245414,-375.219599,0.00038136,31]
[394222915,1763392245423,-151.0,0.00038136,31]
[394222917,1763392245433,-375.219599,0.00038136,31]
[394222919,1763392245442,-375.219599,0.00038136,31]
[394222921,1763392245451,-375.219599,0.00038136,31]
[394222923,1763392245460,-151.0,0.00038136,31]
[394222925,1763392245470,-151.0,0.00038136,31]
[394222927,1763392245479,-151.0,0.00038136,31]
[394222929,1763392245489,-151.0,0.00038136,31]
[394222931,1763392245498,-151.0,0.00038136,31]
[394222933,1763392245509,-151.0,0.00038136,31]
[394222935,1763392245518,-151.0,0.00038136,31]
[394222937,1763392245527,-151.0,0.00038136,31]
[394222939,1763392245537,-168.690077,0.00038136,31]
[394222941,1763392245546,-168.690077,0.00038136,31]
[394222943,1763392245555,-151.0,0.00038136,31]
[394222945,1763392245565,-168.690077,0.00038136,31]
[394222947,1763392245574,-168.690077,0.00038136,31]
[394222949,1763392245584,-151.0,0.00038136,31]
[394222951,1763392245594,-151.0,0.00038136,31]
[394222953,1763392245603,-151.0,0.00038136,31]
[394222955,1763392245614,-294.085003,0.00038136,31]
[394222957,1763392245623,-294.085003,0.00038136,31]
[394222959,1763392245632,-294.085003,0.00038136,31]
[394222961,1763392245641,-294.085003,0.00038136,31]
[394222964,1763392245651,-158.43958,0.00038136,31]
[394222966,1763392245660,-158.43958,0.00038136,31]
[394222968,1763392245670,-158.43958,0.00038136,31]
[394222970,1763392245680,-158.43958,0.00038136,31]
[394222972,1763392245689,-151.0,0.00038136,31]
[394222974,1763392245698,-246.553778,0.00038136,31]
[394222976,1763392245707,-246.553778,0.00038136,31]
[394222978,1763392245718,-246.553778,0.00038136,31]
[394222980,1763392245727,-246.553778,0.00038136,31]
[394222982,1763392245736,-156.396335,0.00038136,31]
[394222984,1763392245745,-156.396335,0.00038136,31]
[394222986,1763392245758,-156.396335,0.00038136,31]
[394222987,1763392245767,-151.0,0.00038136,31]
[394222988,1763392245777,-456.020185,0.00038136,31]
[394222989,1763392245785,-156.396335,0.00038136,31]
[394222990,1763392245795,-456.020185,0.00038136,31]
[394222991,1763392245804,-456.020185,0.00038136,31]
[394222992,1763392245813,-456.020185,0.00038136,31]
[394222993,1763392245822,-151.0,0.00038136,31]
[394222995,1763392245831,-157.407198,0.00038136,31]
[394222997,1763392245841,-151.0,0.00038136,31]
[394222999,1763392245850,-151.0,0.00038136,31]
[394223001,1763392245859,-151.0,0.00038136,31]
[394223003,1763392245869,-151.0,0.00038136,31]
[394223005,1763392245878,-151.0,0.00038136,31]
[394223007,1763392245887,-152.200975,0.00038136,31]
[394223009,1763392245897,-152.341092,0.00038136,31]
[394223011,1763392245906,-159.688385,0.00038136,31]
[394223013,1763392245916,-151.0,0.00038136,31]
[394223015,1763392245928,-151.592104,0.00038136,31]
[394223017,1763392245937,-151.0,0.00038136,31]
[394223019,1763392245946,-297.864068,0.00038136,30]
[394223021,1763392245956,-193.221229,0.00038136,31]
[394223023,1763392245965,-297.864068,0.00038136,30]
[394223025,1763392245975,-151.0,0.00038136,31]
[394223027,1763392245984,-297.864068,0.00038136,30]
[394223029,1763392245994,-193.221229,0.00038136,31]
[394223031,1763392246007,-151.0,0.00038136,31]
[394223033,1763392246016,-193.221229,0.00038136,31]
[394223034,1763392246024,-297.864068,0.00038136,30]
[394223036,1763392246032,-193.221229,0.00038136,31]
[394223038,1763392246042,-151.0,0.00038136,31]
[394223041,1763392246050,-151.0,0.00038136,31]
[394223043,1763392246059,-151.941783,0.00038136,31]
[394223045,1763392246068,-151.0,0.00038136,31]
[394223047,1763392246077,-151.0,0.00038136,31]
[394223049,1763392246084,-151.0,0.00038136,31]
[394223051,1763392246092,-151.0,0.00038136,31]
[394223053,1763392246101,-151.0,0.00038136,31]
[394223055,1763392246109,-418.380489,0.00038136,31]
[394223057,1763392246117,-151.0,0.00038136,31]
[394223059,1763392246126,-154.501776,0.00038136,31]
[394223061,1763392246135,-151.0,0.00038136,31]
[394223063,1763392246144,-151.0,0.00038136,31]
[394223065,1763392246153,-418.380489,0.00038136,31]
[394223067,1763392246161,-833.186447,0.00038136,31]
[394223069,1763392246170,-151.0,0.00038136,31]
[394223071,1763392246178,-151.0,0.00038136,31]
[394223073,1763392246187,-418.380489,0.00038136,31]
[394223075,1763392246195,-833.186447,0.00038136,31]
[394223077,1763392246204,-418.380489,0.00038136,31]
[394223079,1763392246214,-151.0,0.00038136,31]
[394223080,1763392246224,-833.186447,0.00038136,31]
[394223082,1763392246233,-833.186447,0.00038136,31]
[394223085,1763392246243,-176.986136,0.00038136,31]
[394223087,1763392246258,-151.0,0.00038136,31]
[394223089,1763392246267,-151.0,0.00038136,31]
[394223091,1763392246277,-151.0,0.00038136,31]
[394223093,1763392246287,-1132.94502583,0.00038137,30]
[394223095,1763392246297,-503.32747912,0.00038173,5]
[394223097,1763392246306,-501.95355844,0.00038173,5]
[394223099,1763392246315,-166.8981823,0.00038173,5]
[394223101,1763392246325,-500.0,0.00038173,5]
[394223103,1763392246335,-314.64162597,0.00038173,5]
[394223105,1763392246344,-500.0,0.00038173,5]
[394223111,1763392246404,-330.24836993,0.00038173,5]
[394223112,1763392246414,-168.0,0.00038174,2]